fUST/lending_fUST_20250305
["ID","MTS","AMOUNT","RATE_DAILY","PERIOD"]
[355412224,1741116643329,-500.0,0.00045479,120]
[355412225,1741116643338,-663.24,0.00045479,120]
[355412226,1741116643348,-852.35,0.00045479,120]
[355412227,1741116643356,-500.0,0.00045479,120]
[355412228,1741116643366,-500.0,0.00045479,120]
[355412229,1741116643375,-500.0,0.00045479,120]
[355412230,1741116643385,-855.79,0.00045479,120]
[355412231,1741116643394,-17450.67,0.00045479,7]
[355412232,1741116643404,-869.02,0.00045479,120]
[355412233,1741116643413,-500.0,0.00045479,120]
[355412234,1741116643423,-758.51,0.00045479,30]
[355412235,1741116643433,-500.0,0.00045479,120]
[355412236,1741116643442,-500.0,0.00045479,120]
[355412237,1741116643451,-577.47,0.00045479,120]
[355412238,1741116643461,-2450.32,0.000455,30]
[355412239,1741116643470,-500.0,0.00045769,100]
[355412240,1741116643479,-500.0,0.00045869,100]
[355412241,1741116643489,-500.0,0.00045969,94]
[355412242,1741116643498,-450.0,0.00046016,3]
[355412243,1741116643508,-500.0,0.00046026,120]
[355412244,1741116643517,-1052.32,0.00046026,120]
[355412245,1741116643527,-1437.6,0.00046026,120]
[355412246,1741116643537,-188.32,0.00046027,2]
[355412247,1741116643547,-833.33,0.00046027,120]
[355412248,1741116643557,-500.0,0.00046027,120]
[355412249,1741116643566,-983.35,0.00046027,120]
[355412250,1741116643576,-174.03,0.00046027,120]
[355412251,1741116643586,-500.0,0.00046027,120]
[355412252,1741116643596,-500.0,0.00046027,120]
[355412253,1741116643606,-500.0,0.00046027,120]
[355412254,1741116643617,-500.0,0.00046027,120]
[355412255,1741116643627,-1525.91,0.00046027,6]
[355412256,1741116643636,-500.0,0.00046027,120]
[355412257,1741116643646,-500.0,0.00046027,120]
[355412258,1741116643656,-500.0,0.00046027,120]
[355412259,1741116643665,-500.0,0.00046027,120]
[355412260,1741116643675,-663.24,0.00046027,120]
[355412261,1741116643691,-852.35,0.00046027,120]
[355412262,1741116643700,-500.0,0.00046027,120]
[355412263,1741116643710,-500.0,0.00046027,120]
[355412264,1741116643720,-500.0,0.00046027,120]
[355412265,1741116643730,-855.79,0.00046027,120]
[355412266,1741116643740,-17450.67,0.00046027,7]
[355412267,1741116643750,-869.02,0.00046027,120]
[355412268,1741116643760,-500.0,0.00046027,120]
[355412269,1741116643770,-758.51,0.00046027,30]
[355412270,1741116643781,-500.0,0.00046027,120]
[355412271,1741116643790,-500.0,0.00046027,120]
[355412272,1741116643800,-577.47,0.00046027,120]
[355412273,1741116643811,-500.0,0.00046069,95]
[355412274,1741116643820,-500.0,0.00046169,93]
[355412275,1741116643833,-500.0,0.00046269,90]
[355412276,1741116643843,-572.1356458,0.00046359,4]
[355412277,1741116643853,-500.0,0.00046369,97]
[355412278,1741116643863,-500.0,0.00046469,99]
[355412279,1741116643873,-500.0,0.00046532,2]
[355412280,1741116643883,-550.0,0.00046564,3]
[355412281,1741116643892,-500.0,0.00046569,93]
[355412282,1741116643902,-500.0,0.00046574,120]
[355412283,1741116643912,-1052.32,0.00046574,120]
[355412284,1741116643922,-1437.6,0.00046574,120]
[355412285,1741116643931,-188.32,0.00046575,2]
[355412286,1741116643941,-833.33,0.00046575,120]
[355412287,1741116643951,-384.32630838,0.00046575,120]
[355412288,1741116643960,-983.35,0.00046575,120]
[355412289,1741116643970,-500.0,0.00046575,120]
[355412290,1741116643980,-500.0,0.00046575,120]
[355412291,1741116643990,-500.0,0.00046575,120]
[355412292,1741116644000,-500.0,0.00046575,120]
[355412293,1741116644009,-1525.91,0.00046575,6]
[355412294,1741116644019,-500.0,0.00046575,120]
[355412295,1741116644029,-500.0,0.00046575,120]
[355412296,1741116644039,-500.0,0.00046575,120]
[355412297,1741116644049,-500.0,0.00046575,120]
[355412298,1741116644059,-663.24,0.00046575,120]
[355412299,1741116644069,-852.35,0.00046575,120]
[355412300,1741116644081,-500.0,0.00046575,120]
[355412301,1741116644091,-645.4212693,0.00046575,120]
[355412302,1741116644101,-500.0,0.00046575,120]
[355412303,1741116644111,-855.79,0.00046575,120]
[355412304,1741116644121,-17450.67,0.00046575,7]
[355412305,1741116644131,-869.02,0.00046575,120]
[355412306,1741116644141,-500.0,0.00046575,120]
[355412307,1741116644151,-758.51,0.00046575,30]
[355412308,1741116644160,-500.0,0.00046575,120]
[355412309,1741116644169,-577.47,0.00046575,120]
[355412310,1741116644179,-292.38,0.00046575,120]
[355412311,1741116644189,-500.0,0.00046669,99]
[355412312,1741116644198,-2450.32,0.000467,30]
[355412313,1741116644207,-177.97,0.000467,30]
[355412314,1741116644217,-500.0,0.00046769,99]
[355412315,1741116644226,-500.0,0.00046869,98]
[355412316,1741116644236,-695.79,0.000469,2]
[355412317,1741116644245,-500.0,0.00046969,92]
[355412318,1741116644255,-159.0,0.00047,90]
[355412319,1741116644264,-500.0,0.00047069,91]
[355412320,1741116644274,-572.1356458,0.00047112,4]
[355412321,1741116644283,-700.0,0.00047112,3]
[355412322,1741116644293,-500.0,0.00047122,120]
[355412323,1741116644302,-1052.32,0.00047122,120]
[355412324,1741116644312,-1437.6,0.00047122,120]
[355412325,1741116644322,-188.32,0.00047123,2]
[355412326,1741116644335,-833.33,0.00047123,120]
[355412327,1741116644344,-983.35,0.00047123,120]
[355412329,1741116644354,-1525.91,0.00047123,6]
[355412331,1741116644364,-500.0,0.00047123,120]
[355412333,1741116644373,-500.0,0.00047123,120]
[355412335,1741116644383,-500.0,0.00047123,120]
[355412336,1741116644392,-500.0,0.00047123,120]
[355412337,1741116644401,-663.24,0.00047123,120]
[355412338,1741116644410,-852.35,0.00047123,120]
[355412339,1741116644419,-500.0,0.00047123,120]
[355412340,1741116644429,-500.0,0.00047123,120]
[355412341,1741116644438,-855.79,0.00047123,120]
[355412343,1741116644448,-17450.67,0.00047123,7]
[355412345,1741116644458,-869.02,0.00047123,120]
[355412346,1741116644467,-500.0,0.00047123,120]
[355412347,1741116644477,-758.51,0.00047123,30]
[355412348,1741116644486,-500.0,0.00047123,120]
[355412349,1741116644495,-577.47,0.00047123,120]
[355412350,1741116644505,-388.92976503,0.00047138,40]
[355412351,1741116644513,-2240.02990908,0.00047138,40]
[355412352,1741116644522,-19999.999999,0.00047138,2]
[355412353,1741116644531,-7402.85986063,0.00047138,2]
[355412354,1741116644600,-500.0,0.00036983,5]
[355412355,1741116644609,-517.60869618,0.00042463,10]
[355412356,1741116644619,-500.0,0.00043835,120]
[355412357,1741116644628,-312.49130282,0.00047138,2]
[355412358,1741116644655,-2284.64883555,0.00047138,2]
[355412359,1741116644665,-251.98928874,0.00047138,2]
[355412360,1741116644674,-3004.63500665,0.00047138,7]
[355412361,1741116644684,-34040.3075343,0.00047138,14]
[355412362,1741116644694,-5606.98708476,0.00047138,20]
[355412364,1741116644707,-12907.36412238,0.00047138,20]
[355412381,1741116646305,-397.0,0.00043245,2]
[355412382,1741116646315,-500.0,0.00043835,120]
[355412383,1741116646325,-500.0,0.00044383,120]
[355412384,1741116646335,-397.0,0.00046245,2]
[355412385,1741116646345,-17797.28109721,0.00047138,20]
[355412386,1741116646354,-498.0,0.00047138,7]
[355412387,1741116646363,-28546.62195588,0.00047138,7]
[355412388,1741116646373,-150.88149215,0.00047138,2]
[355412389,1741116646382,-1104.01833201,0.00047138,5]
[355412390,1741116646391,-429.08104799,0.00047138,10]
[355412391,1741116646401,-460.59989488,0.00047138,30]
[355412392,1741116646410,-800.0,0.00047138,30]
[355412393,1741116646419,-1143.122,0.00047138,30]
[355412394,1741116646429,-500.0,0.00047169,93]
[355412395,1741116646439,-500.0,0.00047269,99]
[355412396,1741116646448,-500.0,0.00047369,100]
[355412397,1741116646457,-500.0,0.00047469,97]
[355412398,1741116646467,-500.0,0.00047569,95]
[355412399,1741116646477,-572.1356458,0.0004766,4]
[355412400,1741116646486,-500.0,0.00047669,94]
[355412401,1741116646496,-1052.32,0.0004767,120]
[355412402,1741116646505,-1437.6,0.0004767,120]
[355412403,1741116646515,-188.32,0.00047671,2]
[355412404,1741116646524,-833.33,0.00047671,120]
[355412405,1741116646533,-983.35,0.00047671,120]
[355412406,1741116646542,-1525.91,0.00047671,6]
[355412407,1741116646552,-500.0,0.00047671,120]
[355412408,1741116646561,-500.0,0.00047671,120]
[355412409,1741116646571,-500.0,0.00047671,120]
[355412410,1741116646582,-663.24,0.00047671,120]
[355412411,1741116646591,-852.35,0.00047671,120]
[355412412,1741116646600,-500.0,0.00047671,120]
[355412413,1741116646611,-855.79,0.00047671,120]
[355412414,1741116646620,-17450.67,0.00047671,7]
[355412415,1741116646629,-869.02,0.00047671,120]
[355412416,1741116646639,-500.0,0.00047671,120]
[355412417,1741116646649,-758.51,0.00047671,30]
[355412418,1741116646658,-500.0,0.00047671,120]
[355412419,1741116646668,-577.47,0.00047671,120]
[355412420,1741116646678,-500.0,0.00047769,95]
[355412421,1741116646688,-2450.32,0.000478,30]
[355412422,1741116646701,-500.0,0.00047869,94]
[355412423,1741116646711,-177.97,0.000479,30]
[355412424,1741116646720,-500.0,0.00047969,91]
[355412425,1741116646730,-22780.69068597,0.00048015,30]
[355412426,1741116646741,-558.2342964,0.00048016,30]
[355412427,1741116646751,-558.2342964,0.00048016,30]
[355412428,1741116646760,-1116.4685928,0.00048016,30]
[355412429,1741116646772,-558.2342964,0.00048016,30]
[355412430,1741116646781,-558.2342964,0.00048016,30]
[355412431,1741116646791,-558.2342964,0.00048016,30]
[355412432,1741116646801,-558.2342964,0.00048016,30]
[355412433,1741116646810,-500.0,0.00048069,95]
[355412434,1741116646820,-153.0,0.00048073,30]
[355412435,1741116646830,-153.0,0.00048073,30]
[355412436,1741116646839,-153.0,0.00048073,30]
[355412437,1741116646849,-523.29209306,0.0004815,2]
[355412438,1741116646859,-500.0,0.00048169,91]
[355412439,1741116646868,-572.1356458,0.00048209,4]
[355412440,1741116646877,-1052.32,0.00048218,120]
[355412441,1741116646887,-1437.6,0.00048218,120]
[355412442,1741116646896,-188.32,0.00048219,2]
[355412443,1741116646906,-833.33,0.00048219,120]
[355412444,1741116646916,-983.35,0.00048219,120]
[355412445,1741116646926,-1525.91,0.00048219,6]
[355412446,1741116646935,-500.0,0.00048219,120]
[355412447,1741116646945,-500.0,0.00048219,120]
[355412448,1741116646954,-500.0,0.00048219,120]
[355412449,1741116646964,-663.24,0.00048219,120]
[355412450,1741116646973,-852.35,0.00048219,120]
[355412451,1741116646982,-500.0,0.00048219,120]
[355412452,1741116646992,-855.79,0.00048219,120]
[355412453,1741116647002,-17450.67,0.00048219,7]
[355412454,1741116647011,-869.02,0.00048219,120]
[355412455,1741116647020,-500.0,0.00048219,120]
[355412456,1741116647030,-758.51,0.00048219,30]
[355412457,1741116647039,-500.0,0.00048219,120]
[355412458,1741116647049,-577.47,0.00048219,120]
[355412459,1741116647059,-958.01,0.00048269,96]
[355412460,1741116647068,-158.79,0.000483,30]
[355412461,1741116647078,-208.1,0.000485,30]
[355412462,1741116647087,-356.0733927,0.00048564,30]
[355412463,1741116647097,-3000.0,0.00048738,2]
[355412464,1741116647106,-2000.0,0.00048757,120]
[355412465,1741116647115,-500.0,0.00048764,120]
[355412466,1741116647125,-500.0,0.00048764,120]
[355412467,1741116647135,-1052.32,0.00048766,120]
[355412468,1741116647144,-1437.6,0.00048766,120]
[355412469,1741116647154,-188.32,0.00048767,2]
[355412470,1741116647163,-833.33,0.00048767,120]
[355412471,1741116647173,-983.35,0.00048767,120]
[355412472,1741116647182,-1525.91,0.00048767,6]
[355412473,1741116647192,-500.0,0.00048767,120]
[355412474,1741116647201,-500.0,0.00048767,120]
[355412475,1741116647211,-663.24,0.00048767,120]
[355412476,1741116647221,-852.35,0.00048767,120]
[355412477,1741116647230,-500.0,0.00048767,120]
[355412478,1741116647239,-855.79,0.00048767,120]
[355412479,1741116647249,-17450.67,0.00048767,7]
[355412480,1741116647258,-869.02,0.00048767,120]
[355412481,1741116647267,-500.0,0.00048767,120]
[355412482,1741116647276,-758.51,0.00048767,30]
[355412483,1741116647286,-500.0,0.00048767,120]
[355412484,1741116647295,-577.47,0.00048767,120]
[355412485,1741116647305,-572.1356458,0.00048828,4]
[355412486,1741116647314,-558.2342964,0.00048838,30]
[355412487,1741116647324,-558.2342964,0.00048838,30]
[355412488,1741116647444,-558.2342964,0.00048838,30]
[355412489,1741116647454,-558.2342964,0.00048838,30]
[355412490,1741116647463,-558.2342964,0.00048838,30]
[355412491,1741116647473,-558.2342964,0.00048838,30]
[355412492,1741116647483,-558.2342964,0.00048838,30]
[355412493,1741116647492,-558.2342964,0.00048838,30]
[355412494,1741116647502,-558.2342964,0.00048838,30]
[355412495,1741116647511,-752.6960024,0.00048838,30]
[355412496,1741116647520,-500.0,0.00048839,18]
[355412497,1741116647529,-717.5160578,0.00048871,30]
[355412498,1741116647538,-558.2342964,0.00048871,30]
[355412499,1741116647548,-558.2342964,0.00048871,30]
[355412500,1741116647557,-558.2342964,0.00048871,30]
[355412501,1741116647567,-779.1860245,0.00048879,30]
[355412502,1741116647578,-558.2342964,0.00048895,30]
[355412503,1741116647588,-558.2342964,0.00048895,30]
[355412504,1741116647598,-558.2342964,0.00048895,30]
[355412505,1741116647608,-558.2342964,0.00048895,30]
[355412506,1741116647617,-558.2342964,0.00048895,30]
[355412507,1741116647627,-558.2342964,0.00048895,30]
[355412508,1741116647637,-1116.4685928,0.00048895,30]
[355412509,1741116647646,-2450.32,0.000489,30]
[355412510,1741116647656,-159.0,0.00048904,90]
[355412511,1741116647665,-2288.5425832,0.00048918,4]
[355412512,1741116647675,-3078.41814565,0.00048928,2]
[355412513,1741116647692,-1429.9999999,0.00048928,2]
[355412514,1741116734821,19928.19,0.00047138,30]
[355412524,1741116865485,500.0,0.00047136,30]
[355412525,1741116881562,1500.0,0.00047136,120]
[355412534,1741117359409,6820.95,0.00047199,30]
[355412536,1741117518424,14682.94,0.00047283,30]
[355412573,1741117832844,-500.0,0.0003589,2]
[355412575,1741117832854,-3600.08611899,0.00036883,2]
[355412577,1741117832865,-1043.2516018,0.00037434,105]
[355412579,1741117832875,-150.0,0.00037534,2]
[355412581,1741117832885,-1607.3010356,0.0003782,2]
[355412582,1741117832895,-1506.563307,0.00037953,2]
[355412584,1741117832904,-443.0,0.00038358,2]
[355412587,1741117832915,-10000.0,0.00038358,2]
[355412589,1741117832925,-1848.7032925,0.00038665,2]
[355412590,1741117832934,-404.2480116,0.00038753,2]
[355412591,1741117832944,-500.0,0.00038867,5]
[355412592,1741117832954,-353.60124387,0.00038867,5]
[355412593,1741117832964,-500.0,0.00038867,5]
[355412594,1741117832974,-500.0,0.00038867,5]
[355412595,1741117832983,-500.0,0.00038867,5]
[355412596,1741117832995,-500.0,0.00038867,5]
[355412597,1741117833006,-250.0,0.00038996,2]
[355412598,1741117833015,-1924.165104,0.00039017,2]
[355412599,1741117833025,-164.89,0.00039036,2]
[355412600,1741117833035,-164.89,0.00039036,2]
[355412601,1741117833046,-164.89,0.00039036,2]
[355412602,1741117833057,-164.89,0.00039036,2]
[355412603,1741117833067,-164.89,0.00039036,2]
[355412604,1741117833078,-164.89,0.00039036,2]
[355412605,1741117833088,-236.85288497,0.00039046,2]
[355412626,1741117838620,-24663.14711503,0.00039046,2]
[355412627,1741117838631,-200.0,0.00039103,44]
[355412628,1741117838641,-164.89,0.00039314,2]
[355412629,1741117838651,-406.5945095,0.00039324,2]
[355412630,1741117838662,-660.45934428,0.000399,8]
[355412631,1741117838672,-690.60523391,0.00040326,2]
[355412632,1741117838682,-500.0,0.00041211,2]
[355412633,1741117838691,-151.7415,0.00042294,14]
[355412634,1741117838702,-476.2802617,0.00042343,15]
[355412635,1741117838711,-2233.56194509,0.00042948,2]
[355412636,1741117838720,-160.0,0.00042997,2]
[355412637,1741117838730,-783.0,0.00043225,5]
[355412638,1741117838740,-1247.61320286,0.0004382,3]
[355412639,1741117838749,-172.405,0.00043824,68]
[355412641,1741117838759,-10555.9627736,0.00043825,10]
[355412654,1741117840717,-368.81369167,0.00043825,10]
[355412686,1741117843663,-299.38102629,0.00043825,10]
[355412687,1741117843769,-1629.67250844,0.00043825,10]
[355412688,1741117843779,-2495.22640572,0.00043825,3]
[355412689,1741117843788,-500.0,0.00043828,31]
[355412690,1741117843797,-500.0,0.00043828,31]
[355412691,1741117843809,-500.0,0.00043828,2]
[355412692,1741117843818,-500.0,0.00043828,31]
[355412694,1741117843828,-174.76944891,0.00043828,31]
[355412696,1741117843838,-500.0,0.00043828,2]
[355412698,1741117843847,-332.41074793,0.00043828,31]
[355412700,1741117843857,-500.0,0.00043828,31]
[355412701,1741117843867,-500.0,0.00043828,31]
[355412702,1741117843879,-500.0,0.00043828,2]
[355412704,1741117843889,-500.0,0.00043828,2]
[355412707,1741117843899,-620.0,0.00043828,31]
[355412710,1741117843908,-500.0,0.00043828,31]
[355412712,1741117843917,-500.0,0.00043828,2]
[355412714,1741117843926,-427.31705518,0.00043828,2]
[355412716,1741117843935,-500.0,0.00043828,31]
[355412718,1741117843945,-500.0,0.00043828,2]
[355412720,1741117843955,-500.0,0.00043828,2]
[355412722,1741117843964,-500.0,0.00043828,31]
[355412724,1741117843974,-500.0,0.00043828,2]
[355412726,1741117843983,-382.71779174,0.00043828,31]
[355412728,1741117843992,-1088.90919653,0.00043828,31]
[355412730,1741117844002,-1088.90919653,0.00043828,31]
[355412731,1741117844012,-1088.90919653,0.00043828,31]
[355412733,1741117844021,-500.0,0.00043828,2]
[355412735,1741117844031,-1088.90919653,0.00043828,31]
[355412736,1741117844040,-1088.90919653,0.00043828,31]
[355412738,1741117844050,-1088.90919653,0.00043828,31]
[355412740,1741117844059,-1088.90919653,0.00043828,31]
[355412742,1741117844069,-1088.90919653,0.00043828,31]
[355412743,1741117844078,-1088.90919653,0.00043828,31]
[355412744,1741117844087,-1088.90919653,0.00043828,31]
[355412745,1741117844097,-1088.90919653,0.00043828,31]
[355412746,1741117844108,-1088.90919653,0.00043828,31]
[355412747,1741117844117,-1088.90919653,0.00043828,31]
[355412748,1741117844130,-1088.90919653,0.00043828,31]
[355412749,1741117844139,-1088.90919653,0.00043828,31]
[355412750,1741117844148,-1088.90919653,0.00043828,31]
[355412751,1741117844158,-1088.90919653,0.00043828,31]
[355412752,1741117844168,-1088.90919653,0.00043828,31]
[355412753,1741117844178,-1088.90919653,0.00043828,31]
[355412754,1741117844187,-1088.90919653,0.00043828,31]
[355412755,1741117844196,-1088.90919653,0.00043828,31]
[355412756,1741117844208,-1088.90919653,0.00043828,31]
[355412757,1741117844219,-1088.90919653,0.00043828,31]
[355412758,1741117844228,-1088.90919653,0.00043828,31]
[355412759,1741117844238,-1088.90919653,0.00043828,31]
[355412760,1741117844248,-1088.90919653,0.00043828,31]
[355412761,1741117844258,-1088.90919653,0.00043828,31]
[355412762,1741117844267,-1088.90919653,0.00043828,31]
[355412763,1741117844276,-1088.90919653,0.00043828,31]
[355412764,1741117844286,-1088.90919653,0.00043828,31]
[355412765,1741117844296,-1088.90919653,0.00043828,31]
[355412766,1741117844306,-1088.90919653,0.00043828,31]
[355412767,1741117844315,-1088.90919653,0.00043828,31]
[355412768,1741117844324,-1088.90919653,0.00043828,31]
[355412769,1741117844334,-1088.90919653,0.00043828,31]
[355412770,1741117844343,-1088.90919653,0.00043828,31]
[355412771,1741117844352,-1088.90919653,0.00043828,31]
[355412772,1741117844362,-1088.90919653,0.00043828,31]
[355412773,1741117844373,-1088.90919653,0.00043828,31]
[355412774,1741117844383,-1088.90919653,0.00043828,31]
[355412775,1741117844393,-1088.90919653,0.00043828,31]
[355412776,1741117844402,-1088.90919653,0.00043828,31]
[355412777,1741117844412,-1088.90919653,0.00043828,31]
[355412778,1741117844421,-1088.90919653,0.00043828,31]
[355412779,1741117844431,-1088.90919653,0.00043828,31]
[355412780,1741117844440,-1088.90919653,0.00043828,31]
[355412781,1741117844449,-1088.90919653,0.00043828,31]
[355412782,1741117844458,-1088.90919653,0.00043828,31]
[355412783,1741117844467,-1088.90919653,0.00043828,31]
[355412784,1741117844477,-1088.90919653,0.00043828,31]
[355412785,1741117844486,-1088.90919653,0.00043828,31]
[355412786,1741117844495,-1088.90919653,0.00043828,31]
[355412787,1741117844504,-1088.90919653,0.00043828,31]
[355412788,1741117844514,-1088.90919653,0.00043828,31]
[355412790,1741117844523,-1088.90919653,0.00043828,31]
[355412792,1741117844532,-999.0,0.00043833,120]
[355412793,1741117844541,-212.75802251,0.00043834,31]
[355412794,1741117844551,-199.41014704,0.00043834,31]
[355412795,1741117844560,-500.0,0.00043834,31]
[355412796,1741117844570,-500.0,0.00043834,31]
[355412797,1741117844579,-317.70236524,0.00043834,31]
[355412798,1741117844588,-210.74506919,0.00043834,31]
[355412799,1741117844598,-500.0,0.00043834,31]
[355412800,1741117844607,-201.78397882,0.00043834,31]
[355412801,1741117844616,-532.31947762,0.00043834,31]
[355412802,1741117844627,-500.0,0.00043834,31]
[355412803,1741117844636,-150.0,0.00043835,2]
[355412804,1741117844645,-500.0,0.00043835,120]
[355412805,1741117844654,-336.05876073,0.00043835,120]
[355412806,1741117844664,-500.0,0.00043835,120]
[355412807,1741117844673,-500.0,0.00043835,120]
[355412808,1741117844683,-500.0,0.00043835,120]
[355412809,1741117844693,-500.0,0.00043835,120]
[355412810,1741117844702,-500.0,0.00043835,120]
[355412811,1741117844711,-500.0,0.00043835,120]
[355412812,1741117844721,-500.0,0.00043835,120]
[355412813,1741117844731,-500.0,0.00043835,120]
[355412814,1741117844740,-500.0,0.00043835,120]
[355412815,1741117844750,-500.0,0.00043835,120]
[355412816,1741117844759,-500.0,0.00043835,120]
[355412817,1741117844768,-500.0,0.00043835,120]
[355412818,1741117844778,-500.0,0.00043835,120]
[355412819,1741117844787,-500.0,0.00043835,120]
[355412820,1741117844797,-1111.11,0.00043835,120]
[355412821,1741117844807,-500.0,0.00043835,120]
[355412822,1741117844817,-500.0,0.00043835,120]
[355412823,1741117844827,-500.0,0.00043835,120]
[355412824,1741117844836,-500.0,0.00043835,120]
[355412825,1741117844846,-500.0,0.00043835,120]
[355412826,1741117844856,-500.0,0.00043835,120]
[355412827,1741117844865,-500.0,0.00043835,120]
[355412828,1741117844875,-500.0,0.00043835,120]
[355412829,1741117844885,-500.0,0.00043835,120]
[355412830,1741117844895,-500.0,0.00043835,2]
[355412831,1741117844904,-500.0,0.00043835,120]
[355412832,1741117844914,-500.0,0.00043835,120]
[355412833,1741117844924,-500.0,0.00043835,120]
[355412834,1741117844934,-500.0,0.00043835,120]
[355412835,1741117844943,-500.0,0.00043835,120]
[355412836,1741117844953,-500.0,0.00043835,120]
[355412837,1741117844963,-500.0,0.00043835,120]
[355412838,1741117844972,-500.0,0.00043835,120]
[355412839,1741117844982,-500.0,0.00043835,120]
[355412840,1741117844992,-500.0,0.00043835,120]
[355412841,1741117845001,-500.0,0.00043835,120]
[355412842,1741117845010,-500.0,0.00043835,120]
[355412843,1741117845020,-500.0,0.00043835,120]
[355412844,1741117845029,-1990.23,0.00043835,120]
[355412845,1741117845039,-500.0,0.00043835,120]
[355412846,1741117845049,-500.0,0.00043835,120]
[355412847,1741117845058,-402.48931134,0.00043835,120]
[355412848,1741117845068,-500.0,0.00043835,120]
[355412849,1741117845077,-500.0,0.00043835,120]
[355412850,1741117845087,-500.0,0.00043835,120]
[355412851,1741117845097,-500.0,0.00043835,120]
[355412852,1741117845111,-409.27477732,0.00043835,120]
[355412853,1741117845122,-500.0,0.00043835,120]
[355412854,1741117845131,-500.0,0.00043835,120]
[355412855,1741117845141,-500.0,0.00043835,120]
[355412856,1741117845151,-500.0,0.00043835,120]
[355412857,1741117845160,-500.0,0.00043835,120]
[355412858,1741117845169,-500.0,0.00043835,120]
[355412859,1741117845179,-500.0,0.00043835,120]
[355412860,1741117845189,-500.0,0.00043835,120]
[355412861,1741117845200,-500.0,0.00043835,120]
[355412862,1741117845209,-500.0,0.00043835,120]
[355412863,1741117845219,-500.0,0.00043835,120]
[355412864,1741117845229,-500.0,0.00043835,120]
[355412865,1741117845363,-500.0,0.00043835,120]
[355412866,1741117845373,-500.0,0.00043835,120]
[355412867,1741117845383,-500.0,0.00043835,120]
[355412868,1741117845393,-512.36350775,0.00043835,120]
[355412869,1741117845403,-500.0,0.00043835,120]
[355412870,1741117845413,-500.0,0.00043835,120]
[355412871,1741117845422,-500.0,0.00043835,120]
[355412872,1741117845432,-500.0,0.00043835,120]
[355412873,1741117845441,-500.0,0.00043835,120]
[355412874,1741117845451,-500.0,0.00043835,120]
[355412875,1741117845461,-539.19019435,0.00043835,120]
[355412876,1741117845471,-500.0,0.00043835,120]
[355412877,1741117845481,-500.0,0.00043835,120]
[355412878,1741117845491,-500.0,0.00043835,120]
[355412879,1741117845502,-500.0,0.00043835,120]
[355412880,1741117845513,-500.0,0.00043835,120]
[355412881,1741117845523,-500.0,0.00043835,120]
[355412882,1741117845533,-1624.6,0.00043835,120]
[355412883,1741117845544,-500.0,0.00043835,120]
[355412884,1741117845554,-520.35918989,0.00043835,120]
[355412885,1741117845563,-500.0,0.00043835,120]
[355412886,1741117845573,-500.0,0.00043835,120]
[355412887,1741117845583,-1516.48,0.00043835,30]
[355412888,1741117845593,-500.0,0.00043835,120]
[355412889,1741117845603,-1000.0,0.00043835,120]
[355412890,1741117845613,-500.0,0.00043835,120]
[355412891,1741117845622,-500.0,0.00043835,120]
[355412892,1741117845632,-500.0,0.00043835,120]
[355412893,1741117845642,-500.0,0.00043835,120]
[355412894,1741117845652,-505.93558686,0.00043835,120]
[355412895,1741117845662,-500.0,0.00043835,120]
[355412896,1741117845672,-500.0,0.00043835,120]
[355412897,1741117845681,-500.0,0.00043835,120]
[355412898,1741117845690,-500.0,0.00043835,120]